fUST/lending_fUST_20240818
["ID","MTS","AMOUNT","RATE_DAILY","PERIOD"]
[335170950,1723929039424,-250.0,0.00018918,2]
[335170951,1723929039435,-250.0,0.00018969,2]
[335170952,1723929039446,-158.000103,0.00019,2]
[335170953,1723929039457,-250.0,0.0001902,2]
[335170954,1723929039467,-250.0,0.0001907,2]
[335170955,1723929039477,-250.0,0.00019121,2]
[335170956,1723929039487,-250.0,0.00019172,2]
[335170957,1723929039497,-162.972936,0.00019178,2]
[335170958,1723929039507,-166.323235,0.00019178,2]
[335170959,1723929039516,-250.0,0.00019222,2]
[335170960,1723929039526,-250.0,0.00019273,2]
[335170961,1723929039536,-250.0,0.00019323,2]
[335170962,1723929039545,-250.0,0.00019374,2]
[335170963,1723929039555,-250.0,0.00019425,2]
[335170964,1723929039565,-420.0,0.00019624,2]
[335170965,1723929039576,-465.00425719,0.00019628,2]
[335170966,1723929039586,-11700.37030548,0.000199,2]
[335170967,1723929039596,-235.18,0.0001998,3]
[335170968,1723929039606,-352.78,0.0001998,3]
[335170969,1723929039616,-176.39,0.0001998,3]
[335170970,1723929039626,-529.21,0.0001998,3]
[335170971,1723929039635,-500.0,0.00019986,2]
[335170972,1723929039644,-500.0,0.00019986,2]
[335170973,1723929039655,-500.0,0.00019986,2]
[335170974,1723929039665,-232.73631767,0.00019986,2]
[335170975,1723929039675,-202.84128307,0.00019986,2]
[335170976,1723929039685,-500.0,0.00019986,2]
[335170977,1723929039694,-500.0,0.00019986,2]
[335170978,1723929039705,-500.0,0.00019986,2]
[335170979,1723929039715,-500.0,0.00019986,2]
[335170980,1723929039724,-500.0,0.00019986,2]
[335170981,1723929039733,-500.0,0.00019986,2]
[335170982,1723929039743,-500.0,0.00019986,2]
[335170983,1723929039753,-66882.0993682,0.0001999,2]
[335170984,1723929039763,-10506.43940705,0.0002,2]
[335170985,1723929039775,-126439.75871165,0.0002,2]
[335170986,1723929039785,-156.6016576,0.0002,2]
[335170987,1723929039795,-1260.37140197,0.0002,2]
[335170988,1723929039804,-698.67385756,0.00020224,2]
[335170989,1723929039814,-3492.39552223,0.0002039,2]
[335170990,1723929039824,-257.33,0.00020425,120]
[335170991,1723929039833,-150.5,0.00020435,120]
[335170992,1723929039843,-150.5,0.00020445,120]
[335170993,1723929039856,-150.112233,0.000206,3]
[335170994,1723929039865,-465.00021286,0.00020609,2]
[335170995,1723929039875,-150.5,0.00020682,120]
[335170996,1723929039885,-150.5,0.00020692,120]
[335170997,1723929039895,-150.5,0.00020702,120]
[335170998,1723929039908,-190.123138,0.00020707,2]
[335170999,1723929039919,-305.356055,0.00020707,2]
[335171000,1723929039931,-598.83738134,0.00020932,2]
[335171001,1723929039942,-22294.0331227,0.00021136,3]
[335171002,1723929040032,-4454.68042692,0.00021349,2]
[335171003,1723929040043,-470.36,0.0002135,3]
[335171004,1723929040054,-705.56,0.0002135,3]
[335171005,1723929040067,-352.78,0.0002135,3]
[335171006,1723929040076,-4454.68042692,0.00021502,2]
[335171007,1723929040085,-587.0,0.00021586,2]
[335171008,1723929040095,-4454.68042692,0.00021681,2]
[335171009,1723929040105,-11700.37030544,0.00021898,2]
[335171010,1723929040116,-2903.77396404,0.00022,30]
[335171011,1723929040126,-270.7098517,0.00022,2]
[335171012,1723929040136,-884.4232756,0.00022,2]
[335171013,1723929040147,-302.42545213,0.00022,2]
[335171014,1723929040158,-302.39527296,0.00022,2]
[335171015,1723929040168,-4454.68042693,0.00022137,2]
[335171016,1723929040178,-150.112233,0.000222,3]
[335171017,1723929040188,-150.112234,0.000222,3]
[335171018,1723929040197,-302.42545213,0.0002222,2]
[335171019,1723929040207,-302.39527296,0.0002222,2]
[335171020,1723929040218,-1000.45519801,0.0002226,2]
[335171021,1723929040228,-302.42545213,0.0002244,2]
[335171022,1723929040238,-302.39527296,0.0002244,2]
[335171023,1723929040248,-302.42545213,0.0002266,2]
[335171024,1723929040258,-302.39527296,0.0002266,2]
[335171025,1723929040268,-3492.39552223,0.00022809,2]
[335171026,1723929040278,-302.42545213,0.0002288,2]
[335171027,1723929040289,-303.30109998,0.0002288,2]
[335171028,1723929040299,-453.63817819,0.000231,4]
[335171029,1723929040310,-290.614395,0.00023283,2]
[335171030,1723929040321,-453.63817819,0.0002332,4]
[335171031,1723929040330,-453.63817819,0.0002354,4]
[335171032,1723929040339,-162.204175,0.00023608,2]
[335171033,1723929040349,-162.204175,0.00023647,2]
[335171034,1723929040359,-162.204175,0.00023687,2]
[335171035,1723929040369,-162.204175,0.00023726,2]
[335171036,1723929040379,-515.0,0.00023745,2]
[335171037,1723929040390,-302.15383962,0.0002376,4]
[335171038,1723929040400,-150.112233,0.000238,3]
[335171039,1723929040410,-150.112233,0.000238,4]
[335171040,1723929040419,-22294.0331227,0.00023885,3]
[335171041,1723929040429,-11700.37030544,0.00023895,2]
[335171042,1723929040438,-160.0,0.00023999,2]
[335171043,1723929040448,-160.0,0.00023999,2]
[335171044,1723929040457,-181.42596287,0.00023999,2]
[335171045,1723929040467,-160.0,0.00023999,2]
[335171046,1723929040477,-10339.94871612,0.00024121,2]
[335171047,1723929040486,-277.59237245,0.00024199,2]
[335171048,1723929040495,-160.78322974,0.0002426,2]
[335171049,1723929040504,-5243.39070357,0.00024299,2]
[335171050,1723929040514,-154.68290005,0.0002433,2]
[335171051,1723929040523,-271.4297146,0.00024349,2]
[335171052,1723929040532,-882.69740535,0.00024349,2]
[335171053,1723929040542,-882.69740535,0.00024349,2]
[335171054,1723929040553,-271.4297146,0.00024349,2]
[335171055,1723929040563,-782.32633188,0.00024349,2]
[335171056,1723929040572,-154.80649189,0.00024349,2]
[335171057,1723929040582,-154.68290005,0.00024366,2]
[335171059,1723929040591,-1110.60501038,0.00024379,2]
[335171060,1723929040600,-285.31252066,0.00024379,2]
[335171061,1723929040609,-154.68290005,0.00024385,2]
[335171062,1723929040618,-435.0,0.00024395,2]
[335171063,1723929040629,-380.0,0.00024658,2]
[335171064,1723929040639,-160.0,0.00024754,2]
[335171065,1723929040651,-160.0,0.00024754,2]
[335171066,1723929040661,-246.48438493,0.00025,2]
[335171067,1723929040671,-504.09272851,0.00025,2]
[335171068,1723929040681,-300.0,0.00025,2]
[335171069,1723929040690,-3492.39552223,0.00025227,2]
[335171070,1723929040699,-150.112233,0.000254,7]
[335171071,1723929040709,-150.112233,0.000254,7]
[335171072,1723929040718,-1414.0,0.00025585,2]
[335171073,1723929040728,-8333.0,0.00025585,2]
[335171074,1723929040737,-22294.0331227,0.000258,3]
[335171075,1723929040748,-150.781,0.0002581,2]
[335171077,1723929040758,-186.505,0.0002581,2]
[335171078,1723929040770,-299.007,0.0002581,2]
[335171079,1723929040780,-150.0,0.0002581,2]
[335171080,1723929040791,-516.754,0.0002581,2]
[335171081,1723929040803,-11700.37030544,0.00025893,2]
[335171082,1723929040812,-2890.443386,0.00025921,2]
[335171084,1723929040822,-200.0,0.000269,2]
[335171085,1723929040832,-200.0,0.00026936,2]
[335171086,1723929040842,-150.112233,0.00027,7]
[335171087,1723929040855,-150.112233,0.00027,5]
[335171088,1723929040864,-190.123138,0.00027167,2]
[335171089,1723929040874,-305.356055,0.00027167,2]
[335171090,1723929040885,-3000.0,0.000272,2]
[335171091,1723929040896,-5533.730265,0.0002721,2]
[335171092,1723929040906,-160.0,0.00027499,10]
[335171093,1723929040915,-183.5,0.000275,2]
[335171094,1723929040925,-505.0,0.000275,2]
[335171095,1723929040935,-3492.39552223,0.00027645,2]
[335171096,1723929040945,-20557.08743857,0.00027824,11]
[335171097,1723929040956,-22294.0331227,0.00027824,3]
[335171098,1723929040965,-11700.37030544,0.0002789,2]
[335171099,1723929040975,-749.48784441,0.0002789,2]
[335171100,1723929040984,-151.0,0.0002789,7]
[335171101,1723929040994,-151.0,0.0002789,7]
[335171102,1723929041003,-151.0,0.0002799,7]
[335171103,1723929041014,-151.0,0.0002799,7]
[335171104,1723929041024,-250.902243,0.0002799,5]
[335171105,1723929041033,-283.582932,0.0002799,7]
[335171106,1723929041043,-283.582932,0.0002799,7]
[335171107,1723929041053,-151.0,0.0002799,7]
[335171108,1723929041063,-162.279296,0.0002799,7]
[335171109,1723929041073,-442.785604,0.0002799,2]
[335171110,1723929041083,-442.785604,0.0002799,2]
[335171111,1723929041093,-151.0,0.0002799,7]
[335171112,1723929041102,-151.0,0.0002799,7]
[335171113,1723929041112,-151.0,0.0002799,7]
[335171114,1723929041121,-151.0,0.0002799,7]
[335171115,1723929041131,-151.0,0.0002799,7]
[335171116,1723929041140,-66882.0993682,0.0002799,3]
[335171117,1723929041150,-151.0,0.0002799,7]
[335171118,1723929041160,-163.609499,0.0002799,7]
[335171119,1723929041169,-234.067036,0.0002799,7]
[335171120,1723929041178,-234.067036,0.0002799,7]
[335171121,1723929041187,-160739.0,0.00028,2]
[335171122,1723929041196,-151.0,0.00028,7]
[335171123,1723929041206,-151.0,0.00028,7]
[335171124,1723929041215,-151.0,0.00028,7]
[335171125,1723929041224,-151.0,0.00028,7]
[335171126,1723929041233,-283.582932,0.00028,7]
[335171127,1723929041243,-283.582932,0.00028,7]
[335171128,1723929041252,-151.0,0.00028,7]
[335171129,1723929041333,-442.785604,0.00028,2]
[335171130,1723929041343,-442.785604,0.00028,2]
[335171131,1723929041353,-151.0,0.00028,7]
[335171132,1723929041363,-151.0,0.00028,7]
[335171133,1723929041372,-151.0,0.00028,7]
[335171134,1723929041382,-234.067036,0.00028,7]
[335171135,1723929041391,-234.067036,0.00028,7]
[335171136,1723929041401,-310.0,0.00028,30]
[335171137,1723929041410,-455.062982,0.00028,30]
[335171138,1723929041419,-151.0,0.00028,7]
[335171139,1723929041429,-151.0,0.00028,7]
[335171140,1723929041438,-400.0,0.00028306,2]
[335171141,1723929041447,-1414.0,0.00028585,2]
[335171142,1723929041456,-8333.0,0.00028585,2]
[335171143,1723929041466,-150.112233,0.000286,5]
[335171144,1723929041474,-150.112233,0.000286,9]
[335171145,1723929041484,-749.48784437,0.00028669,2]
[335171146,1723929041493,-22294.0331227,0.000288,3]
[335171147,1723929041502,-150.0,0.0002881,2]
[335171148,1723929041512,-200.2660357,0.00028822,2]
[335171149,1723929041521,-904.0,0.000289,2]
[335171150,1723929041531,-1997.699999,0.00029,120]
[335171151,1723929041540,-300.0,0.00029,2]
[335171152,1723929041549,-749.48784437,0.00029448,2]
[335171153,1723929041559,-151.0,0.00029679,7]
[335171154,1723929041568,-151.0,0.00029679,7]
[335171155,1723929041577,-151.0,0.00029679,7]
[335171156,1723929041587,-100602.9911428,0.0002968,120]
[335171157,1723929041761,-2144.86567437,0.0002968,120]
[335171158,1723929041770,-166.323235,0.00029715,2]
[335171159,1723929041780,-551.00556477,0.00029889,2]
[335171160,1723929041790,-154.68290005,0.00029889,30]
[335171161,1723929041799,-500.0,0.00029889,2]
[335171162,1723929041808,-203.60517816,0.00029999,2]
[335171163,1723929041818,-4531.03697636,0.00029999,2]
[335171164,1723929041829,-728.23,0.00029999,2]
[335171221,1723929046770,-500.0,0.00019986,2]
[335171222,1723929046779,-500.0,0.00019986,2]
[335171223,1723929046789,-500.0,0.00019986,2]
[335171224,1723929046798,-500.0,0.00019986,2]
[335171225,1723929046807,-500.0,0.00019986,2]
[335171226,1723929046816,-500.0,0.00019986,2]
[335171227,1723929046826,-500.0,0.00019986,2]
[335171228,1723929046835,-500.0,0.00019986,2]
[335171229,1723929046845,-168.07089654,0.00019986,2]
[335171230,1723929046858,-500.0,0.00019986,2]
[335171231,1723929046868,-500.0,0.00019986,2]
[335171232,1723929046879,-500.0,0.00021918,2]
[335171233,1723929046888,-620.70901516,0.00021918,2]
[335171234,1723929046898,-882.69740535,0.0002433,2]
[335171235,1723929046909,-154.68290005,0.00024349,2]
[335171236,1723929046918,-732.35259415,0.00029999,2]
[335171237,1723929046929,-150.76046863,0.00029999,2]
[335171238,1723929046938,-19658.73938782,0.0003,30]
[335171239,1723929046948,-151.0,0.0003,120]
[335171240,1723929046957,-151.0,0.0003,120]
[335171241,1723929046967,-4144.52694303,0.0003,2]
[335171242,1723929046976,-1557.80026965,0.0003,2]
[335171243,1723929046985,-213.07282523,0.0003,30]
[335171244,1723929046995,-182.5,0.0003,2]
[335171245,1723929047004,-151.0,0.0003,7]
[335171246,1723929047013,-175.007577,0.0003,2]
[335171247,1723929047023,-243.0,0.0003,2]
[335171248,1723929047034,-1001.014073,0.0003,2]
[335171249,1723929047046,-271.45995891,0.0003,2]
[335171250,1723929047056,-3492.39552223,0.00030063,2]
[335171251,1723929047065,-153.0,0.00030082,2]
[335171252,1723929047075,-153.0,0.00030082,2]
[335171253,1723929047084,-153.0,0.00030082,2]
[335171254,1723929047094,-153.0,0.00030082,2]
[335171255,1723929047103,-150.0,0.00030199,2]
[335171256,1723929047192,-150.112233,0.000302,9]
[335171257,1723929047201,-150.112233,0.000302,9]
[335171258,1723929047211,-150.112233,0.000302,7]
[335171259,1723929047220,-150.112233,0.000302,9]
[335171260,1723929047230,-245.042288,0.000302,8]
[335171261,1723929047240,-749.48784437,0.00030227,2]
[335171262,1723929047250,-1133.63026641,0.00030555,2]
[335171263,1723929047259,-200.0,0.00030871,4]
[335171264,1723929047269,-200.0,0.00030871,5]
[335171265,1723929047278,-200.0,0.00030871,2]
[335171266,1723929047288,-150.0,0.00030999,2]
[335171267,1723929047297,-10000.0,0.00031,31]
[335171268,1723929047306,-317.72,0.00031,14]
[335171269,1723929047316,-150.112233,0.00031,7]
[335171270,1723929047326,-150.112233,0.00031,8]
[335171271,1723929047335,-749.48784437,0.00031006,2]
[335171272,1723929047344,-150.0,0.00031199,2]
[335171273,1723929047353,-1088.528,0.00031585,2]
[335171274,1723929047362,-8333.0,0.00031585,2]
[335171275,1723929047372,-749.48784437,0.00031784,2]
[335171276,1723929047382,-150.112233,0.000318,9]
[335171277,1723929047392,-150.112233,0.000318,6]
[335171278,1723929047401,-150.112233,0.000318,8]
[335171279,1723929047411,-150.112233,0.000318,8]
[335171280,1723929047421,-150.112233,0.000318,8]
[335171281,1723929047431,-150.0,0.0003181,2]
[335171282,1723929047440,-150.0,0.00031999,2]
[335171283,1723929047449,-400.0,0.00032241,4]
[335171284,1723929047458,-326.04635216,0.00032241,5]
[335171285,1723929047467,-400.0,0.00032241,2]
[335171286,1723929047477,-3492.39552223,0.00032482,2]
[335171287,1723929047486,-749.48784437,0.00032563,2]
[335171288,1723929047496,-150.112233,0.000326,8]
[335171289,1723929047505,-150.112233,0.000326,10]
[335171290,1723929047514,-150.0,0.00032999,2]
[335171291,1723929047523,-1000.0,0.00033,33]
[335171292,1723929047532,-283.582932,0.00033,7]
[335171293,1723929047541,-283.582932,0.00033,7]
[335171294,1723929047551,-442.785604,0.00033,2]
[335171295,1723929047560,-442.785604,0.00033,2]
[335171296,1723929047570,-243.0,0.00033,2]
[335171297,1723929047580,-243.0,0.00033,2]
[335171298,1723929047589,-922.67613992,0.00033087,120]
[335171299,1723929047598,-317.72,0.000333,14]
[335171300,1723929047607,-749.48784437,0.00033342,2]
[335171301,1723929047617,-150.112233,0.000334,7]
[335171302,1723929047626,-150.112233,0.000334,8]
[335171303,1723929047636,-150.112233,0.000334,9]
[335171304,1723929047646,-150.112233,0.000334,6]
[335171305,1723929047656,-150.112233,0.000334,7]
[335171306,1723929047665,-190.123138,0.00033626,2]
[335171307,1723929047674,-305.356055,0.00033626,2]
[335171308,1723929047684,-150.112234,0.00034,5]
[335171309,1723929047693,-749.48784437,0.00034121,2]
[335171310,1723929047703,-150.112233,0.000342,8]
[335171311,1723929047713,-150.112233,0.000342,6]
[335171312,1723929047722,-600.0,0.00034244,4]
[335171313,1723929047732,-200.82159658,0.00034244,2]
[335171314,1723929047741,-150.112233,0.000345,7]
[335171315,1723929047751,-8333.0,0.00034585,2]
[335171316,1723929047760,-8922.60237543,0.00034595,21]
[335171317,1723929047769,-1000.0,0.000348,3]
[335171318,1723929047778,-151.0,0.000348,7]
[335171319,1723929047787,-290.803785,0.000348,7]
[335171320,1723929047796,-298.910988,0.000348,7]
[335171321,1723929047806,-442.785604,0.000348,2]
[335171322,1723929047815,-442.785604,0.000348,2]
[335171323,1723929047825,-151.0,0.000348,7]
[335171324,1723929047834,-151.0,0.000348,7]
[335171325,1723929047843,-151.0,0.000348,7]
[335171326,1723929047856,-234.067036,0.0003481,7]
[335171327,1723929047866,-234.067036,0.0003481,7]
[335171328,1723929047875,-151.0,0.00034899,7]
[335171329,1723929047884,-151.0,0.00034899,7]
[335171330,1723929047895,-27462.01346531,0.000349,2]
[335171331,1723929047904,-151.0,0.000349,7]
[335171332,1723929047914,-151.0,0.000349,7]
[335171333,1723929047924,-283.582932,0.000349,7]
[335171334,1723929047936,-283.582932,0.000349,7]
[335171335,1723929047945,-749.48784437,0.000349,2]
[335171336,1723929047955,-3492.39552223,0.000349,2]
[335171337,1723929047965,-151.0,0.000349,7]
[335171338,1723929047974,-151.0,0.000349,7]
[335171339,1723929047987,-234.067036,0.00034998,7]
[335171340,1723929047997,-234.067036,0.00034998,7]
[335171341,1723929048007,-9617.84853073,0.00034999,5]
[335171342,1723929048017,-19873.30089811,0.00034999,3]
[335171343,1723929048027,-154.87468361,0.00035,15]
[335171344,1723929048036,-10387.7312018,0.00035,2]
[335171345,1723929048046,-1573.69980684,0.00035,30]
[335171360,1723929370021,210.35761,0.00014247,2]
[335171361,1723929383423,546.74672462,0.000201,120]
[335171365,1723929399262,546.74672462,0.000201,120]
[335171367,1723929415108,546.74672462,0.00015001,2]
[335171368,1723929431324,546.74672462,0.00015001,2]
[335171369,1723929447072,546.74672462,0.00015001,2]
[335171370,1723929462824,546.74672462,0.00015001,2]
[335171372,1723929478530,546.74672462,0.00015001,2]
[335171374,1723929494366,546.74672462,0.00015001,2]
[335171376,1723929510163,546.74672462,0.00015001,2]
[335171378,1723929526000,273.37336231,0.00015001,2]
[335171379,1723929541250,820.12008693,0.00015001,2]
[335171380,1723929552908,200.43693464,0.00015001,2]
[335171381,1723929554517,150.5,0.0001999,120]
[335171382,1723929554956,150.5,0.0001998,120]
[335171383,1723929555443,150.5,0.0001997,120]
[335171384,1723929556635,546.74672462,0.00015001,2]
[335171385,1723929571817,546.74672462,0.00015001,2]
[335171386,1723929587116,546.74672462,0.00015001,2]
[335171387,1723929604016,546.74672462,0.00015001,2]
[335171388,1723929619830,546.74672462,0.00015001,2]
[335171389,1723929635605,546.74672462,0.00015001,2]
[335171390,1723929652007,273.37336231,0.00015001,2]
[335171391,1723929668005,546.74672462,0.00015001,2]
[335171392,1723929683431,820.12008693,0.00015001,2]
[335171394,1723929699845,168.52529543,0.00015001,2]
[335171400,1723929934933,262.83838,0.00014247,2]
[335171401,1723929940425,-1916.38294183,0.00016178,2]
[335171405,1723930027267,-277.5605111,0.00016134,2]
[335171406,1723930027418,-216.41016082,0.00016178,2]
[335171407,1723930027444,-428.54508988,0.00016278,2]
[335171408,1723930033183,-1792.76578129,0.00016278,2]
[335171409,1723930049112,-496.26466411,0.00016278,2]
[335171410,1723930052517,-282.42446472,0.00016278,2]
[335171411,1723930052540,-778.99859446,0.00016296,2]
[335171412,1723930054120,-666.22309854,0.00016296,2]
[335171413,1723930054147,-300.0,0.00016329,2]
[335171414,1723930054171,-300.0,0.00016329,2]
[335171415,1723930054197,-176.03016976,0.0001633,2]
[335171419,1723930149122,-300.0,0.00016329,2]
[335171420,1723930149144,-300.0,0.00016329,2]
[335171421,1723930149167,-13907.56053364,0.0001633,2]
[335171422,1723930149190,-250.0,0.00016766,2]
[335171423,1723930149212,-250.0,0.00016812,2]
[335171424,1723930149236,-250.0,0.00016858,2]
[335171425,1723930149258,-250.0,0.00016904,2]
[335171426,1723930149280,-250.0,0.0001695,2]
[335171427,1723930149302,-250.0,0.00016996,2]
[335171428,1723930149328,-250.0,0.00017042,2]
[335171429,1723930149349,-250.0,0.00017088,2]
[335171430,1723930149372,-162.204175,0.00017092,2]
[335171431,1723930149394,-162.204175,0.0001712,2]
[335171432,1723930149416,-250.0,0.00017134,2]
[335171433,1723930149438,-162.204175,0.00017149,2]
[335171434,1723930149458,-1110.60501038,0.00017174,2]
[335171435,1723930149479,-162.204175,0.00017177,2]
[335171436,1723930149502,-250.0,0.0001718,2]
[335171437,1723930149523,-277.59237245,0.00017208,2]
[335171438,1723930149546,-250.0,0.00017226,2]
[335171439,1723930149571,-782.32633188,0.00017267,2]
[335171440,1723930149593,-250.0,0.00017272,2]
[335171441,1723930149616,-250.0,0.00017318,2]
[335171442,1723930149637,-250.0,0.00017364,2]
[335171443,1723930149658,-250.0,0.00017409,2]
[335171444,1723930149683,-250.0,0.00017455,2]
[335171445,1723930149705,-250.0,0.00017501,2]
[335171446,1723930149727,-250.0,0.00017547,2]
[335171447,1723930149750,-250.0,0.00017593,2]
[335171448,1723930149772,-210.99393726,0.000176,2]
[335171449,1723930149794,-250.0,0.00017639,2]
[335171450,1723930149816,-1746.19776115,0.00017796,2]
[335171451,1723930149840,-299.0,0.00017847,2]
[335171452,1723930149860,-331.44880488,0.00017895,2]
[335171453,1723930149882,-154.76012181,0.00017895,2]
[335171454,1723930149903,-500.0,0.00017895,2]
[335171455,1723930149925,-300.68857708,0.00017895,2]
[335171456,1723930149946,-500.0,0.00017895,2]
[335171457,1723930149969,-500.0,0.00017895,2]
[335171458,1723930149991,-500.0,0.00017895,2]
[335171459,1723930150014,-500.0,0.00017895,2]
[335171460,1723930150035,-500.0,0.00017895,2]
[335171461,1723930150056,-500.0,0.00017895,2]
[335171462,1723930150077,-500.0,0.00017895,2]
[335171463,1723930150195,-522.15241132,0.00017895,2]
[335171464,1723930150218,-500.0,0.00017895,2]
[335171465,1723930150240,-500.0,0.00017895,2]
[335171466,1723930150264,-500.0,0.00017895,2]
[335171467,1723930150284,-500.0,0.00017895,2]
[335171468,1723930150305,-500.0,0.00017895,2]
[335171469,1723930150327,-500.0,0.00017895,2]
[335171470,1723930150348,-500.0,0.00017895,2]
[335171471,1723930150371,-500.0,0.00017895,2]
[335171472,1723930150392,-500.0,0.00017895,2]
[335171473,1723930150414,-500.0,0.00017895,2]
[335171474,1723930150437,-500.0,0.00017895,2]
[335171475,1723930150460,-500.0,0.00017895,2]
[335171476,1723930150481,-500.0,0.00017895,2]
[335171477,1723930150504,-500.0,0.00017895,2]
[335171478,1723930150526,-500.0,0.00017895,2]
[335171479,1723930150548,-500.0,0.00017895,2]
[335171480,1723930150570,-500.0,0.00017895,2]
[335171481,1723930150591,-500.0,0.00017895,2]
[335171482,1723930150612,-500.12446228,0.00017895,2]
[335171483,1723930150633,-500.0,0.00017895,2]
[335171484,1723930150655,-500.0,0.00017895,2]
[335171485,1723930150676,-500.0,0.00017895,2]
[335171486,1723930150696,-500.0,0.00017895,2]
[335171487,1723930150717,-500.0,0.00017895,2]
[335171488,1723930150740,-500.0,0.00017895,2]
[335171489,1723930150761,-500.0,0.00017895,2]
[335171490,1723930150782,-500.0,0.00017895,2]
[335171491,1723930150803,-500.0,0.00017895,2]
[335171492,1723930150825,-500.0,0.00017895,2]
[335171493,1723930150846,-500.0,0.00017895,2]
[335171494,1723930150867,-500.0,0.00017895,2]
[335171495,1723930150887,-500.0,0.00017895,2]
[335171496,1723930150908,-500.0,0.00017895,2]
[335171497,1723930150929,-500.0,0.00017895,2]
[335171498,1723930150952,-500.0,0.00017895,2]
[335171499,1723930150973,-500.0,0.00017895,2]
[335171500,1723930150994,-500.0,0.00017895,2]
[335171501,1723930151016,-500.0,0.00017895,2]
[335171502,1723930151037,-631.64092165,0.00017895,2]
[335171503,1723930151058,-500.0,0.00017895,2]
[335171504,1723930151079,-500.0,0.00017895,2]
[335171505,1723930151100,-500.0,0.00017895,2]
[335171506,1723930151121,-500.0,0.00017895,2]
[335171507,1723930151142,-500.0,0.00017895,2]
[335171508,1723930151164,-500.0,0.00017895,2]
[335171509,1723930151186,-500.0,0.00017895,2]
[335171510,1723930151281,-500.0,0.00017895,2]
[335171511,1723930151304,-500.0,0.00017895,2]
[335171512,1723930151325,-500.0,0.00017895,2]
[335171513,1723930151347,-500.0,0.00017895,2]
[335171514,1723930151372,-500.0,0.00017895,2]
[335171515,1723930151394,-500.0,0.00017895,2]
[335171516,1723930151415,-500.0,0.00017895,2]
[335171517,1723930151437,-500.0,0.00017895,2]
[335171518,1723930151458,-500.0,0.00017895,2]
[335171519,1723930151481,-500.0,0.00017895,2]
[335171520,1723930151502,-500.0,0.00017895,2]
[335171521,1723930151524,-500.0,0.00017895,2]
[335171522,1723930151546,-500.0,0.00017895,2]
[335171523,1723930151567,-500.0,0.00017895,2]
[335171524,1723930151588,-500.0,0.00017895,2]
[335171525,1723930151612,-350.0,0.00017895,2]
[335171526,1723930151634,-500.0,0.00017895,2]
[335171527,1723930151657,-500.0,0.00017895,2]
[335171528,1723930151678,-500.0,0.00017895,2]
[335171529,1723930151700,-500.0,0.00017895,2]
[335171530,1723930151721,-1698.79869713,0.00017898,2]
[335171531,1723930151929,-477.09018556,0.00017898,2]
[335171534,1723930171119,-170.73911232,0.00017259,2]
[335171603,1723930231797,-120.75664116,0.00017208,2]
[335171647,1723930237859,-661.56969072,0.00017208,2]
[335171649,1723930237869,-8164.05983343,0.00017898,2]
[335171651,1723930237878,-267.28219318,0.00018183,2]
[335171653,1723930237890,-250.0,0.00018516,2]
[335171655,1723930237901,-250.0,0.00018567,2]
[335171657,1723930237912,-300.0,0.00018617,2]
[335171660,1723930237923,-250.0,0.00018618,2]
[335171662,1723930237934,-250.0,0.00018669,2]
[335171664,1723930237945,-250.0,0.00018719,2]